[Event "Titled Tuesday Blitz April 12 Late 2022"]
[White "Petrova, Irina"]
[Black "Foisor, Sabina-Francesca"]
[WhiteFideId "14124122"]
[BlackFideId "1212915"]
[WhiteElo "1993"]
[BlackElo "2243"]
[Result "1/2-1/2"]
[Round "10"]
[TimeControl "180+1"]
[Date "2022.04.13"]
[WhiteClock "0:00:25"]
[BlackClock "0:00:26"]

1. e4 {[%clk 0:03:00]}  c6 {[%clk 0:02:59]} 2. d4 {[%clk 0:03:00]}  d5 {[%clk 0:02:59]} 3. e5 {[%clk 0:03:00]}  Bf5 {[%clk 0:02:57]} 4. h4 {[%clk 0:03:00]}  h6 {[%clk 0:02:57]} 5. Nc3 {[%clk 0:03:00]}  e6 {[%clk 0:02:57]} 6. g4 {[%clk 0:02:59]}  Bg6 {[%clk 0:02:53]} 7. h5 {[%clk 0:02:57]}  Bh7 {[%clk 0:02:53]} 8. Bd3 {[%clk 0:02:57]}  Bxd3 {[%clk 0:02:49]} 9. Qxd3 {[%clk 0:02:58]}  a6 {[%clk 0:02:45]} 10. f4 {[%clk 0:02:57]}  c5 {[%clk 0:02:44]} 11. Nf3 {[%clk 0:02:57]}  Nc6 {[%clk 0:02:44]} 12. Be3 {[%clk 0:02:56]}  cxd4 {[%clk 0:02:29]} 13. Nxd4 {[%clk 0:02:56]}  Nxd4 {[%clk 0:02:29]} 14. Bxd4 {[%clk 0:02:57]}  Ne7 {[%clk 0:02:29]} 15. O-O-O {[%clk 0:02:55]}  Nc6 {[%clk 0:02:30]} 16. f5 {[%clk 0:02:49]}  Nxd4 {[%clk 0:02:16]} 17. Qxd4 {[%clk 0:02:49]}  Be7 {[%clk 0:02:16]} 18. fxe6 {[%clk 0:02:47]}  fxe6 {[%clk 0:02:17]} 19. Rdf1 {[%clk 0:02:44]}  Rf8 {[%clk 0:02:01]} 20. Qd3 {[%clk 0:02:40]}  Bg5+ {[%clk 0:02:00]} 21. Kb1 {[%clk 0:02:39]}  Qe7 {[%clk 0:01:59]} 22. Qg6+ {[%clk 0:02:26]}  Kd7 {[%clk 0:01:51]} 23. a3 {[%clk 0:02:14]}  Rxf1+ {[%clk 0:01:49]} 24. Rxf1 {[%clk 0:02:15]}  Rf8 {[%clk 0:01:48]} 25. Rxf8 {[%clk 0:02:13]}  Qxf8 {[%clk 0:01:49]} 26. Ka2 {[%clk 0:02:08]}  Ke7 {[%clk 0:01:41]} 27. Ne2 {[%clk 0:02:00]}  Qf7 {[%clk 0:01:35]} 28. Qd3 {[%clk 0:01:46]}  Kf8 {[%clk 0:01:25]} 29. c4 {[%clk 0:01:34]}  Qc7 {[%clk 0:01:10]} 30. cxd5 {[%clk 0:01:28]}  Qxe5 {[%clk 0:01:10]} 31. dxe6 {[%clk 0:01:17]}  Qxe6+ {[%clk 0:01:09]} 32. Ka1 {[%clk 0:01:14]}  Kg8 {[%clk 0:01:09]} 33. Qf3 {[%clk 0:01:10]}  Bf6 {[%clk 0:00:50]} 34. Nf4 {[%clk 0:00:50]}  Qe5 {[%clk 0:00:38]} 35. Qb3+ {[%clk 0:00:50]}  Kh7 {[%clk 0:00:37]} 36. Ng6 {[%clk 0:00:45]}  Qe4 {[%clk 0:00:25]} 37. Nf8+ {[%clk 0:00:33]}  Kh8 {[%clk 0:00:25]} 38. Ng6+ {[%clk 0:00:31]}  Kh7 {[%clk 0:00:26]} 39. Nf8+ {[%clk 0:00:25]}  Kh8 {[%clk 0:00:26]} 40. Ng6+ {[%clk 0:00:25]}  Kh7 {[%clk 0:00:26]} 1/2-1/2


[Site "https://www.chess.com"]

[Event "Titled Tuesday Blitz April 12 Late 2022"]
[White "Petrovskyi, Vadym"]
[Black "Papp, Levente"]
[WhiteFideId "14165210"]
[BlackFideId "751243"]
[WhiteElo "2400"]
[BlackElo "2308"]
[Result "0-1"]
[Round "10"]
[TimeControl "180+1"]
[Date "2022.04.12"]
[WhiteClock "0:00:44"]
[BlackClock "0:00:20"]

1. e4 {[%clk 0:02:50]}  e6 {[%clk 0:03:00]} 2. d4 {[%clk 0:02:50]}  d5 {[%clk 0:03:00]} 3. Nc3 {[%clk 0:02:50]}  Bb4 {[%clk 0:03:00]} 4. e5 {[%clk 0:02:51]}  Ne7 {[%clk 0:03:00]} 5. a3 {[%clk 0:02:51]}  Bxc3+ {[%clk 0:03:01]} 6. bxc3 {[%clk 0:02:52]}  b6 {[%clk 0:03:02]} 7. a4 {[%clk 0:02:53]}  Ba6 {[%clk 0:03:00]} 8. Ne2 {[%clk 0:02:52]}  c5 {[%clk 0:02:51]} 9. Ba3 {[%clk 0:02:48]}  Qc7 {[%clk 0:02:49]} 10. Qd2 {[%clk 0:02:44]}  Nbc6 {[%clk 0:02:44]} 11. f4 {[%clk 0:02:42]}  Na5 {[%clk 0:02:35]} 12. dxc5 {[%clk 0:02:38]}  bxc5 {[%clk 0:02:34]} 13. Ng3 {[%clk 0:02:37]}  Bxf1 {[%clk 0:02:33]} 14. Rxf1 {[%clk 0:02:38]}  h5 {[%clk 0:02:14]} 15. Qe3 {[%clk 0:02:31]}  Rc8 {[%clk 0:02:05]} 16. f5 {[%clk 0:02:02]}  Nc4 {[%clk 0:01:55]} 17. Qf4 {[%clk 0:01:57]}  h4 {[%clk 0:01:45]} 18. fxe6 {[%clk 0:01:50]}  fxe6 {[%clk 0:01:35]} 19. Nh5 {[%clk 0:01:47]}  Nf5 {[%clk 0:01:30]} 20. g4 {[%clk 0:01:42]}  hxg3 {[%clk 0:01:17]} 21. Nxg3 {[%clk 0:01:42]}  g6 {[%clk 0:01:03]} 22. Ne2 {[%clk 0:01:26]}  Nce3 {[%clk 0:01:01]} 23. Kd2 {[%clk 0:01:21]}  Rh4 {[%clk 0:00:45]} 24. Qg5 {[%clk 0:01:16]}  Qxe5 {[%clk 0:00:38]} 25. Rf4 {[%clk 0:01:06]}  Rxh2 {[%clk 0:00:27]} 26. Qxg6+ {[%clk 0:01:06]}  Kd7 {[%clk 0:00:27]} 27. Qf7+ {[%clk 0:01:02]}  Kc6 {[%clk 0:00:27]} 28. Re1 {[%clk 0:00:52]}  Qxf4 {[%clk 0:00:26]} 29. Bc1 {[%clk 0:00:45]}  Nc4+ {[%clk 0:00:21]} 30. Kd1 {[%clk 0:00:45]}  Nfe3+ {[%clk 0:00:21]} 31. Bxe3 {[%clk 0:00:46]}  Qxf7 {[%clk 0:00:22]} 32. Bc1 {[%clk 0:00:45]}  Qf3 {[%clk 0:00:21]} 33. a5 {[%clk 0:00:42]}  Rh1 {[%clk 0:00:20]} 34. Bh6 {[%clk 0:00:41]}  Rxe1+ {[%clk 0:00:20]} 35. Kxe1 {[%clk 0:00:42]}  Qh1+ {[%clk 0:00:20]} 36. Kf2 {[%clk 0:00:42]}  Qxh6 {[%clk 0:00:21]} 37. a6 {[%clk 0:00:42]}  Qe3+ {[%clk 0:00:21]} 38. Ke1 {[%clk 0:00:43]}  Rh8 {[%clk 0:00:20]} 39. Kd1 {[%clk 0:00:43]}  Rh1+ {[%clk 0:00:20]} 40. Ng1 {[%clk 0:00:44]}  Rxg1# {[%clk 0:00:20]} 0-1


[Site "https://www.chess.com"]

[Event "Titled Tuesday Blitz April 12 Late 2022"]
[White "Pinheiro, Iung Alicio de O."]
[Black "Kazakouski, Valery"]
[WhiteFideId "2104350"]
[BlackFideId "13507443"]
[WhiteElo "2567"]
[BlackElo "2524"]
[Result "0-1"]
[Round "10"]
[TimeControl "180+1"]
[Date "2022.04.12"]
[WhiteClock "0:00:01"]
[BlackClock "0:00:32"]

1. c4 {[%clk 0:02:59]}  e6 {[%clk 0:02:57]} 2. g3 {[%clk 0:02:58]}  d5 {[%clk 0:02:58]} 3. Bg2 {[%clk 0:02:58]}  dxc4 {[%clk 0:02:59]} 4. Nf3 {[%clk 0:02:51]}  Nf6 {[%clk 0:02:58]} 5. O-O {[%clk 0:02:50]}  c6 {[%clk 0:02:59]} 6. a4 {[%clk 0:02:41]}  Na6 {[%clk 0:02:59]} 7. Qc2 {[%clk 0:02:32]}  b5 {[%clk 0:02:59]} 8. Ne5 {[%clk 0:02:27]}  Nb4 {[%clk 0:02:47]} 9. Qd1 {[%clk 0:02:00]}  Nfd5 {[%clk 0:02:42]} 10. b3 {[%clk 0:01:54]}  cxb3 {[%clk 0:02:37]} 11. Qxb3 {[%clk 0:01:54]}  Bb7 {[%clk 0:02:34]} 12. Bb2 {[%clk 0:01:43]}  Be7 {[%clk 0:02:25]} 13. e4 {[%clk 0:01:41]}  Nf6 {[%clk 0:02:23]} 14. d4 {[%clk 0:01:40]}  O-O {[%clk 0:02:22]} 15. Rc1 {[%clk 0:01:39]}  Qb6 {[%clk 0:02:17]} 16. a5 {[%clk 0:01:32]}  Qa6 {[%clk 0:02:13]} 17. Nd2 {[%clk 0:01:11]}  Rfd8 {[%clk 0:01:56]} 18. Bc3 {[%clk 0:00:59]}  c5 {[%clk 0:01:51]} 19. dxc5 {[%clk 0:00:59]}  Nd3 {[%clk 0:01:46]} 20. Qc2 {[%clk 0:00:47]}  b4 {[%clk 0:01:26]} 21. Nxd3 {[%clk 0:00:24]}  bxc3 {[%clk 0:01:26]} 22. Nb4 {[%clk 0:00:22]}  cxd2 {[%clk 0:01:24]} 23. Nxa6 {[%clk 0:00:21]}  dxc1=Q+ {[%clk 0:01:25]} 24. Rxc1 {[%clk 0:00:22]}  Bxa6 {[%clk 0:01:25]} 25. e5 {[%clk 0:00:22]}  Nd5 {[%clk 0:01:25]} 26. c6 {[%clk 0:00:21]}  Rac8 {[%clk 0:01:23]} 27. h4 {[%clk 0:00:21]}  Bb5 {[%clk 0:01:19]} 28. Be4 {[%clk 0:00:21]}  g6 {[%clk 0:01:18]} 29. Qb1 {[%clk 0:00:17]}  Rxc6 {[%clk 0:01:13]} 30. Rxc6 {[%clk 0:00:16]}  Bxc6 {[%clk 0:01:14]} 31. Qc2 {[%clk 0:00:16]}  Nb4 {[%clk 0:01:11]} 32. Qc4 {[%clk 0:00:16]}  Bxe4 {[%clk 0:01:07]} 33. Qxe4 {[%clk 0:00:17]}  Rd5 {[%clk 0:01:04]} 34. a6 {[%clk 0:00:14]}  Kg7 {[%clk 0:00:55]} 35. f4 {[%clk 0:00:14]}  h5 {[%clk 0:00:54]} 36. Qc4 {[%clk 0:00:13]}  Rc5 {[%clk 0:00:52]} 37. Qb3 {[%clk 0:00:12]}  Nxa6 {[%clk 0:00:44]} 38. Qb7 {[%clk 0:00:12]}  Nc7 {[%clk 0:00:44]} 39. Qxa7 {[%clk 0:00:11]}  Rc3 {[%clk 0:00:42]} 40. Kg2 {[%clk 0:00:11]}  Nd5 {[%clk 0:00:43]} 41. Qd7 {[%clk 0:00:11]}  Bb4 {[%clk 0:00:36]} 42. Qd8 {[%clk 0:00:08]}  Rc2+ {[%clk 0:00:36]} 43. Kh3 {[%clk 0:00:05]}  Be1 {[%clk 0:00:33]} 44. g4 {[%clk 0:00:01]}  Nxf4# {[%clk 0:00:32]} 0-1


[Site "https://www.chess.com"]

[Event "Titled Tuesday Blitz April 12 Late 2022"]
[White "Plazuelo Pascual, Juan"]
[Black "Narayanan.S.L"]
[WhiteFideId "32059566"]
[BlackFideId "5058422"]
[WhiteElo "2359"]
[BlackElo "2494"]
[Result "0-1"]
[Round "10"]
[TimeControl "180+1"]
[Date "2022.04.12"]
[WhiteClock "0:00:03"]
[BlackClock "0:00:27"]

1. e4 {[%clk 0:03:00]}  g6 {[%clk 0:03:00]} 2. d4 {[%clk 0:03:00]}  Bg7 {[%clk 0:03:01]} 3. Nc3 {[%clk 0:03:01]}  a6 {[%clk 0:03:01]} 4. h4 {[%clk 0:02:58]}  h5 {[%clk 0:03:01]} 5. Be3 {[%clk 0:02:54]}  d6 {[%clk 0:03:01]} 6. Nh3 {[%clk 0:02:53]}  Bxh3 {[%clk 0:03:01]} 7. Rxh3 {[%clk 0:02:54]}  Nd7 {[%clk 0:03:02]} 8. Qd2 {[%clk 0:02:46]}  Ngf6 {[%clk 0:03:02]} 9. O-O-O {[%clk 0:02:42]}  c6 {[%clk 0:03:02]} 10. Kb1 {[%clk 0:02:40]}  Qa5 {[%clk 0:02:59]} 11. Bd3 {[%clk 0:02:39]}  O-O-O {[%clk 0:02:59]} 12. Rg3 {[%clk 0:02:27]}  Ng4 {[%clk 0:02:58]} 13. Bg5 {[%clk 0:02:13]}  Bxd4 {[%clk 0:02:43]} 14. Bxe7 {[%clk 0:02:11]}  Rde8 {[%clk 0:02:42]} 15. Bxd6 {[%clk 0:02:10]}  Nxf2 {[%clk 0:02:41]} 16. Rf1 {[%clk 0:02:08]}  Ng4 {[%clk 0:02:34]} 17. Bxa6 {[%clk 0:01:30]}  Bxc3 {[%clk 0:02:25]} 18. Bxb7+ {[%clk 0:01:30]}  Kxb7 {[%clk 0:02:25]} 19. Rxc3 {[%clk 0:01:31]}  Qa6 {[%clk 0:02:22]} 20. Rxf7 {[%clk 0:01:28]}  Kc8 {[%clk 0:02:13]} 21. Bg3 {[%clk 0:01:04]}  Nge5 {[%clk 0:02:10]} 22. Bxe5 {[%clk 0:00:48]}  Nxe5 {[%clk 0:02:08]} 23. Qd6 {[%clk 0:00:48]}  Nxf7 {[%clk 0:01:35]} 24. Rxc6+ {[%clk 0:00:47]}  Qxc6 {[%clk 0:01:35]} 25. Qxc6+ {[%clk 0:00:48]}  Kd8 {[%clk 0:01:36]} 26. Qxg6 {[%clk 0:00:42]}  Ne5 {[%clk 0:01:32]} 27. Qf6+ {[%clk 0:00:27]}  Kd7 {[%clk 0:01:31]} 28. Qg7+ {[%clk 0:00:27]}  Kc6 {[%clk 0:01:27]} 29. Qf6+ {[%clk 0:00:28]}  Kc7 {[%clk 0:01:27]} 30. Qg7+ {[%clk 0:00:27]}  Nd7 {[%clk 0:01:28]} 31. Qc3+ {[%clk 0:00:24]}  Kd8 {[%clk 0:01:25]} 32. a4 {[%clk 0:00:22]}  Rh6 {[%clk 0:01:23]} 33. Qg7 {[%clk 0:00:18]}  Ra6 {[%clk 0:01:18]} 34. b3 {[%clk 0:00:14]}  Rxe4 {[%clk 0:01:14]} 35. Qh8+ {[%clk 0:00:13]}  Kc7 {[%clk 0:01:10]} 36. Qxh5 {[%clk 0:00:13]}  Rc6 {[%clk 0:01:11]} 37. Qa5+ {[%clk 0:00:13]}  Nb6 {[%clk 0:01:10]} 38. Qa7+ {[%clk 0:00:13]}  Kc8 {[%clk 0:01:05]} 39. a5 {[%clk 0:00:13]}  Nd7 {[%clk 0:00:59]} 40. Qf2 {[%clk 0:00:13]}  Rf6 {[%clk 0:00:56]} 41. Qd2 {[%clk 0:00:12]}  Rxh4 {[%clk 0:00:55]} 42. Qc3+ {[%clk 0:00:11]}  Kd8 {[%clk 0:00:54]} 43. Qg3 {[%clk 0:00:10]}  Rh1+ {[%clk 0:00:52]} 44. Kb2 {[%clk 0:00:10]}  Rhh6 {[%clk 0:00:46]} 45. Qg5 {[%clk 0:00:08]}  Rg6 {[%clk 0:00:47]} 46. Qd5 {[%clk 0:00:07]}  Rd6 {[%clk 0:00:46]} 47. Qa8+ {[%clk 0:00:08]}  Ke7 {[%clk 0:00:45]} 48. Qe4+ {[%clk 0:00:07]}  Rge6 {[%clk 0:00:46]} 49. Qh7+ {[%clk 0:00:07]}  Kd8 {[%clk 0:00:47]} 50. g4 {[%clk 0:00:07]}  Kc7 {[%clk 0:00:43]} 51. Qf5 {[%clk 0:00:04]}  Re5 {[%clk 0:00:43]} 52. Qf4 {[%clk 0:00:04]}  Rxa5 {[%clk 0:00:42]} 53. g5 {[%clk 0:00:03]}  Re5 {[%clk 0:00:40]} 54. b4 {[%clk 0:00:01]}  Rg6 {[%clk 0:00:37]} 55. Kb3 {[%clk 0:00:02]}  Rxg5 {[%clk 0:00:37]} 56. Qc4+ {[%clk 0:00:02]}  Kd6 {[%clk 0:00:37]} 57. Qd4+ {[%clk 0:00:03]}  Ke6 {[%clk 0:00:37]} 58. Qc4+ {[%clk 0:00:02]}  Ke7 {[%clk 0:00:36]} 59. Qf1 {[%clk 0:00:03]}  Rgf5 {[%clk 0:00:36]} 60. Qh3 {[%clk 0:00:03]}  Nf6 {[%clk 0:00:37]} 61. c3 {[%clk 0:00:02]}  Nd5 {[%clk 0:00:36]} 62. Qh7+ {[%clk 0:00:02]}  Kd6 {[%clk 0:00:36]} 63. Qg6+ {[%clk 0:00:03]}  Rf6 {[%clk 0:00:36]} 64. Qg8 {[%clk 0:00:03]}  Re3 {[%clk 0:00:36]} 65. Qd8+ {[%clk 0:00:03]}  Ke5 {[%clk 0:00:36]} 66. Qe8+ {[%clk 0:00:02]}  Re6 {[%clk 0:00:37]} 67. Qh8+ {[%clk 0:00:02]}  Kd6 {[%clk 0:00:35]} 68. Kb2 {[%clk 0:00:01]}  Rxc3 {[%clk 0:00:34]} 69. Qf8+ {[%clk 0:00:02]}  Kd7 {[%clk 0:00:31]} 70. Qf7+ {[%clk 0:00:02]}  Kd6 {[%clk 0:00:31]} 71. Qf8+ {[%clk 0:00:02]}  Ke5 {[%clk 0:00:31]} 72. Qg7+ {[%clk 0:00:02]}  Ke4 {[%clk 0:00:30]} 73. Qg4+ {[%clk 0:00:02]}  Ke5 {[%clk 0:00:29]} 74. Qg7+ {[%clk 0:00:03]}  Rf6 {[%clk 0:00:30]} 75. Qg2 {[%clk 0:00:02]}  Rc4 {[%clk 0:00:28]} 76. Qe2+ {[%clk 0:00:02]}  Re4 {[%clk 0:00:28]} 77. Qd2 {[%clk 0:00:02]}  Rxb4+ {[%clk 0:00:28]} 78. Ka3 {[%clk 0:00:03]}  Ra6# {[%clk 0:00:27]} 0-1


[Site "https://www.chess.com"]

[Event "Titled Tuesday Blitz April 12 Late 2022"]
[White "Prado, Alexandra"]
[Black "Hartikainen, Jarmo"]
[WhiteFideId "3301346"]
[BlackFideId "503134"]
[WhiteElo "1678"]
[BlackElo "2098"]
[Result "0-1"]
[Round "10"]
[TimeControl "180+1"]
[Date "2022.04.13"]
[WhiteClock "0:00:01"]
[BlackClock "0:00:18"]

1. e4 {[%clk 0:03:00]}  c5 {[%clk 0:02:58]} 2. Nf3 {[%clk 0:02:58]}  Nc6 {[%clk 0:02:58]} 3. c3 {[%clk 0:02:50]}  d5 {[%clk 0:02:58]} 4. exd5 {[%clk 0:02:49]}  Qxd5 {[%clk 0:02:58]} 5. d4 {[%clk 0:02:50]}  cxd4 {[%clk 0:02:58]} 6. cxd4 {[%clk 0:02:51]}  Bg4 {[%clk 0:02:58]} 7. Be2 {[%clk 0:02:50]}  e6 {[%clk 0:02:58]} 8. Nc3 {[%clk 0:02:49]}  Qa5 {[%clk 0:02:58]} 9. O-O {[%clk 0:02:34]}  Nf6 {[%clk 0:02:57]} 10. Qb3 {[%clk 0:02:32]}  Qb4 {[%clk 0:02:56]} 11. Qxb4 {[%clk 0:02:06]}  Bxb4 {[%clk 0:02:54]} 12. Bg5 {[%clk 0:01:59]}  Bxc3 {[%clk 0:02:29]} 13. bxc3 {[%clk 0:01:59]}  Ne4 {[%clk 0:02:28]} 14. Be3 {[%clk 0:01:15]}  Nxc3 {[%clk 0:02:23]} 15. Bd3 {[%clk 0:01:03]}  Rd8 {[%clk 0:01:54]} 16. Rfc1 {[%clk 0:00:46]}  Bxf3 {[%clk 0:01:27]} 17. gxf3 {[%clk 0:00:47]}  Nd5 {[%clk 0:01:27]} 18. Bb5 {[%clk 0:00:40]}  Ne7 {[%clk 0:01:26]} 19. Rc2 {[%clk 0:00:34]}  O-O {[%clk 0:01:25]} 20. Rd1 {[%clk 0:00:28]}  Rd6 {[%clk 0:01:19]} 21. Rcd2 {[%clk 0:00:23]}  Rfd8 {[%clk 0:01:18]} 22. Bg5 {[%clk 0:00:20]}  f6 {[%clk 0:01:16]} 23. Bf4 {[%clk 0:00:19]}  Rxd4 {[%clk 0:01:02]} 24. Rxd4 {[%clk 0:00:18]}  Rxd4 {[%clk 0:00:58]} 25. Rxd4 {[%clk 0:00:17]}  Nxd4 {[%clk 0:00:59]} 26. Bb8 {[%clk 0:00:16]}  a6 {[%clk 0:00:52]} 27. Bd7 {[%clk 0:00:16]}  Kf7 {[%clk 0:00:51]} 28. Kg2 {[%clk 0:00:15]}  b5 {[%clk 0:00:46]} 29. Ba7 {[%clk 0:00:14]}  Ndc6 {[%clk 0:00:40]} 30. Bc5 {[%clk 0:00:13]}  Ne5 {[%clk 0:00:29]} 31. Bxe7 {[%clk 0:00:12]}  Kxe7 {[%clk 0:00:25]} 32. Bc8 {[%clk 0:00:12]}  a5 {[%clk 0:00:25]} 33. f4 {[%clk 0:00:11]}  Nc6 {[%clk 0:00:22]} 34. Kf3 {[%clk 0:00:08]}  Kd6 {[%clk 0:00:20]} 35. Ke4 {[%clk 0:00:08]}  Kc5 {[%clk 0:00:20]} 36. Bxe6 {[%clk 0:00:06]}  b4 {[%clk 0:00:19]} 37. Bg8 {[%clk 0:00:06]}  h6 {[%clk 0:00:19]} 38. Kf5 {[%clk 0:00:06]}  Ne7+ {[%clk 0:00:18]} 39. Ke6 {[%clk 0:00:03]}  Nxg8 {[%clk 0:00:19]} 40. Kf7 {[%clk 0:00:04]}  a4 {[%clk 0:00:19]} 41. Kxg8 {[%clk 0:00:03]}  b3 {[%clk 0:00:20]} 42. axb3 {[%clk 0:00:02]}  axb3 {[%clk 0:00:20]} 43. Kxg7 {[%clk 0:00:03]}  b2 {[%clk 0:00:20]} 44. Kxf6 {[%clk 0:00:02]}  b1=Q {[%clk 0:00:20]} 45. f5 {[%clk 0:00:01]}  Qc1 {[%clk 0:00:18]} 0-1


[Site "https://www.chess.com"]

[Event "Titled Tuesday Blitz April 12 Late 2022"]
[White "Prohorov, Olexandr"]
[Black "Guzman Moneo, Alberto"]
[WhiteFideId "14105578"]
[BlackFideId "2209616"]
[WhiteElo "1993"]
[BlackElo "2157"]
[Result "1-0"]
[Round "10"]
[TimeControl "180+1"]
[Date "2022.04.13"]
[WhiteClock "0:00:44"]
[BlackClock "0:00:07"]

1. Nf3 {[%clk 0:03:00]}  Nf6 {[%clk 0:02:44]} 2. c4 {[%clk 0:02:59]}  c5 {[%clk 0:02:42]} 3. Nc3 {[%clk 0:02:59]}  Nc6 {[%clk 0:02:42]} 4. g3 {[%clk 0:02:59]}  e5 {[%clk 0:02:41]} 5. Bg2 {[%clk 0:02:58]}  d6 {[%clk 0:02:41]} 6. O-O {[%clk 0:02:58]}  g6 {[%clk 0:02:38]} 7. e3 {[%clk 0:02:54]}  Bg7 {[%clk 0:02:18]} 8. d4 {[%clk 0:02:54]}  O-O {[%clk 0:02:15]} 9. b3 {[%clk 0:02:48]}  Bg4 {[%clk 0:02:05]} 10. dxe5 {[%clk 0:02:28]}  dxe5 {[%clk 0:02:03]} 11. Qc2 {[%clk 0:02:24]}  Nb4 {[%clk 0:01:56]} 12. Qb1 {[%clk 0:02:12]}  Qd3 {[%clk 0:01:44]} 13. Qxd3 {[%clk 0:02:04]}  Nxd3 {[%clk 0:01:45]} 14. e4 {[%clk 0:02:04]}  Nxc1 {[%clk 0:01:36]} 15. Raxc1 {[%clk 0:02:05]}  Rfe8 {[%clk 0:01:12]} 16. Rcd1 {[%clk 0:02:01]}  h6 {[%clk 0:01:05]} 17. Rfe1 {[%clk 0:01:53]}  b6 {[%clk 0:01:02]} 18. h3 {[%clk 0:01:49]}  Bxf3 {[%clk 0:00:58]} 19. Bxf3 {[%clk 0:01:50]}  Rad8 {[%clk 0:00:58]} 20. Nb5 {[%clk 0:01:41]}  Rd4 {[%clk 0:00:39]} 21. Nxd4 {[%clk 0:01:32]}  exd4 {[%clk 0:00:34]} 22. Bg2 {[%clk 0:01:26]}  g5 {[%clk 0:00:31]} 23. e5 {[%clk 0:01:20]}  Nd7 {[%clk 0:00:27]} 24. Bc6 {[%clk 0:01:16]}  Re7 {[%clk 0:00:26]} 25. Bxd7 {[%clk 0:01:14]}  Rxd7 {[%clk 0:00:27]} 26. f4 {[%clk 0:01:11]}  gxf4 {[%clk 0:00:23]} 27. gxf4 {[%clk 0:01:12]}  Re7 {[%clk 0:00:23]} 28. Kf2 {[%clk 0:01:08]}  Kf8 {[%clk 0:00:20]} 29. Kf3 {[%clk 0:01:08]}  h5 {[%clk 0:00:21]} 30. Rg1 {[%clk 0:01:01]}  f6 {[%clk 0:00:18]} 31. Ke4 {[%clk 0:00:52]}  fxe5 {[%clk 0:00:16]} 32. f5 {[%clk 0:00:53]}  Bf6 {[%clk 0:00:15]} 33. Rg6 {[%clk 0:00:51]}  Kf7 {[%clk 0:00:13]} 34. Rdg1 {[%clk 0:00:48]}  Re8 {[%clk 0:00:13]} 35. Rh6 {[%clk 0:00:45]}  Rg8 {[%clk 0:00:07]} 36. Rxg8 {[%clk 0:00:44]} 1-0


[Site "https://www.chess.com"]

[Event "Titled Tuesday Blitz April 12 Late 2022"]
[White "Przybylski, Wojciech"]
[Black "Ambartsumova, Karina"]
[WhiteFideId "1117599"]
[BlackFideId "4166299"]
[WhiteElo "2133"]
[BlackElo "2262"]
[Result "1-0"]
[Round "10"]
[TimeControl "180+1"]
[Date "2022.04.12"]
[WhiteClock "0:00:36"]
[BlackClock "0:00:01"]

1. d4 {[%clk 0:03:00]}  Nf6 {[%clk 0:02:59]} 2. c4 {[%clk 0:03:00]}  e6 {[%clk 0:02:59]} 3. Nf3 {[%clk 0:02:59]}  d5 {[%clk 0:03:00]} 4. a3 {[%clk 0:02:57]}  dxc4 {[%clk 0:02:50]} 5. Nc3 {[%clk 0:02:48]}  c5 {[%clk 0:02:48]} 6. e3 {[%clk 0:02:43]}  Nc6 {[%clk 0:02:39]} 7. dxc5 {[%clk 0:02:31]}  Qxd1+ {[%clk 0:02:35]} 8. Kxd1 {[%clk 0:02:30]}  Ng4 {[%clk 0:02:17]} 9. Ke1 {[%clk 0:02:26]}  Nge5 {[%clk 0:02:16]} 10. Ne4 {[%clk 0:02:07]}  b5 {[%clk 0:01:41]} 11. a4 {[%clk 0:01:56]}  Nxf3+ {[%clk 0:01:29]} 12. gxf3 {[%clk 0:01:55]}  Nb4 {[%clk 0:01:30]} 13. Kd1 {[%clk 0:01:50]}  Bd7 {[%clk 0:01:28]} 14. Bd2 {[%clk 0:01:49]}  Nd5 {[%clk 0:01:14]} 15. axb5 {[%clk 0:01:37]}  Bxb5 {[%clk 0:01:13]} 16. b3 {[%clk 0:01:37]}  Nc7 {[%clk 0:00:29]} 17. bxc4 {[%clk 0:01:32]}  Bc6 {[%clk 0:00:29]} 18. Bd3 {[%clk 0:01:21]}  a6 {[%clk 0:00:24]} 19. Ke2 {[%clk 0:01:17]}  Rd8 {[%clk 0:00:20]} 20. Ba5 {[%clk 0:01:15]}  Rd7 {[%clk 0:00:19]} 21. Rhb1 {[%clk 0:01:07]}  Be7 {[%clk 0:00:18]} 22. Rb8+ {[%clk 0:01:05]}  Bd8 {[%clk 0:00:18]} 23. Nd6+ {[%clk 0:01:04]}  Ke7 {[%clk 0:00:18]} 24. Rb6 {[%clk 0:00:49]}  Ba8 {[%clk 0:00:15]} 25. Bb4 {[%clk 0:00:49]}  Kf6 {[%clk 0:00:15]} 26. Bc3+ {[%clk 0:00:48]}  Ke7 {[%clk 0:00:14]} 27. Bxg7 {[%clk 0:00:47]}  Rg8 {[%clk 0:00:13]} 28. Bd4 {[%clk 0:00:45]}  f6 {[%clk 0:00:12]} 29. f4 {[%clk 0:00:43]}  Rf8 {[%clk 0:00:03]} 30. Ne4 {[%clk 0:00:37]}  Ne8 {[%clk 0:00:01]} 31. c6 {[%clk 0:00:36]} 1-0


[Site "https://www.chess.com"]

[Event "Titled Tuesday Blitz April 12 Late 2022"]
[White "Quesada Perez, Yuniesky"]
[Black "Rozman, Levy"]
[WhiteFideId "3504409"]
[BlackFideId "2039877"]
[WhiteElo "2622"]
[BlackElo "2376"]
[Result "1-0"]
[Round "10"]
[TimeControl "180+1"]
[Date "2022.04.12"]
[WhiteClock "0:00:48"]
[BlackClock "0:00:12"]

1. e4 {[%clk 0:03:00]}  e6 {[%clk 0:02:58]} 2. d4 {[%clk 0:03:00]}  d5 {[%clk 0:02:58]} 3. e5 {[%clk 0:03:01]}  c5 {[%clk 0:02:56]} 4. c3 {[%clk 0:03:01]}  Qb6 {[%clk 0:02:43]} 5. Nf3 {[%clk 0:02:59]}  Bd7 {[%clk 0:02:43]} 6. Bd3 {[%clk 0:02:57]}  cxd4 {[%clk 0:02:41]} 7. Nxd4 {[%clk 0:02:56]}  Bc5 {[%clk 0:02:31]} 8. Qg4 {[%clk 0:02:34]}  Ne7 {[%clk 0:02:23]} 9. O-O {[%clk 0:02:33]}  Nbc6 {[%clk 0:02:18]} 10. Nxc6 {[%clk 0:02:30]}  Qxc6 {[%clk 0:02:04]} 11. Nd2 {[%clk 0:02:26]}  h5 {[%clk 0:01:51]} 12. Qg5 {[%clk 0:02:13]}  g6 {[%clk 0:01:33]} 13. Nb3 {[%clk 0:02:09]}  b6 {[%clk 0:01:15]} 14. Qf6 {[%clk 0:02:04]}  Rh7 {[%clk 0:01:08]} 15. Nxc5 {[%clk 0:01:58]}  bxc5 {[%clk 0:01:07]} 16. Bg5 {[%clk 0:01:58]}  Ng8 {[%clk 0:01:00]} 17. Qf4 {[%clk 0:01:57]}  Rb8 {[%clk 0:00:56]} 18. b3 {[%clk 0:01:56]}  Qc7 {[%clk 0:00:50]} 19. Rfe1 {[%clk 0:01:49]}  Rg7 {[%clk 0:00:45]} 20. Rad1 {[%clk 0:01:44]}  a5 {[%clk 0:00:43]} 21. Re3 {[%clk 0:01:33]}  a4 {[%clk 0:00:40]} 22. Rf3 {[%clk 0:01:30]}  Bc6 {[%clk 0:00:32]} 23. Bh6 {[%clk 0:01:22]}  Nxh6 {[%clk 0:00:28]} 24. Qxh6 {[%clk 0:01:21]}  Qxe5 {[%clk 0:00:27]} 25. Re3 {[%clk 0:01:00]}  Qxc3 {[%clk 0:00:17]} 26. Qh8+ {[%clk 0:00:57]}  Kd7 {[%clk 0:00:14]} 27. Qxb8 {[%clk 0:00:57]}  axb3 {[%clk 0:00:12]} 28. Bb5 {[%clk 0:00:48]} 1-0


[Site "https://www.chess.com"]